bitfinex-derivatives/quotes_BNBF0:USTF0_20250315
["timestamp","ask_amount","ask_price","bid_price","bid_amount"]
[1742031880569,0.30248723,596.94,596.01,0.33045478]
[1742031880768,0.30248723,597.06,596.01,0.33045478]
[1742031883271,0.29186795,597.05,596.01,0.33045478]
[1742031883575,0.30248723,597.04,596.01,0.33045478]
[1742031886168,0.30248723,597.06,596.01,0.33045478]
[1742031886373,0.29201123,597.03,596.01,0.33045478]
[1742031886574,0.30248723,597.02,596.01,0.33045478]
[1742031889481,0.59434417,597.01,596.01,0.33045478]
[1742031889680,0.30248723,597.0,596.01,0.33045478]
[1742031892284,0.30248723,596.99,596.01,0.33045478]
[1742031892476,0.29185816,596.99,596.01,0.33045478]
[1742031892677,0.30248723,596.98,596.01,0.33045478]
[1742031892881,0.29185816,596.99,596.01,0.33045478]
[1742031893083,0.30244779,596.98,596.01,0.33045478]
[1742031895485,0.29185939,596.97,596.01,0.33045478]
[1742031895882,0.30244779,596.96,596.01,0.33045478]
[1742031896681,0.29185939,596.97,596.01,0.33045478]
[1742031896882,0.30246056,596.96,596.01,0.33045478]
[1742031898698,0.29185939,596.97,596.01,0.33045478]
[1742031898896,0.30243562,596.96,596.01,0.33045478]
[1742031901193,0.29185816,596.95,596.01,0.33045478]
[1742031901693,0.30243562,596.94,596.01,0.33045478]
[1742031903799,0.30242996,596.93,596.01,0.33045478]
[1742031904099,0.30242996,596.92,596.01,0.33045478]
[1742031904402,0.30242996,596.91,596.01,0.33045478]
[1742031904601,0.30242996,596.94,596.01,0.33045478]
[1742031904800,0.30242996,596.93,596.01,0.33045478]
[1742031905001,0.30242996,596.94,596.01,0.33045478]
[1742031907905,0.30242996,596.94,596.01,0.33045478]
[1742031908204,2.56182178,597.36,596.01,0.33045478]
[1742031908405,0.30228259,597.35,596.01,0.33045478]
[1742031909303,0.5940082,597.34,596.01,0.33045478]
[1742031909504,0.30227482,597.33,596.01,0.33045478]
[1742031909897,0.29173338,597.34,596.01,0.33045478]
[1742031910101,2.56182178,597.85,596.01,0.33045478]
[1742031910102,0.30227879,597.33,596.01,0.33045478]
[1742031910302,0.29173583,597.32,596.01,0.33045478]
[1742031910705,0.30227879,597.31,596.01,0.33045478]
[1742031911206,0.29173583,597.32,596.01,0.33045478]
[1742031911402,0.30227779,597.31,596.01,0.33045478]
[1742031913207,0.29173583,597.32,596.01,0.33045478]
[1742031913408,0.30228053,597.31,596.01,0.33045478]
[1742031916312,0.5940078,597.3,596.01,0.33045478]
[1742031916511,0.30228053,597.29,596.01,0.33045478]
[1742031919209,0.30228053,597.77,596.01,0.33045478]
[1742031919408,0.2917236,597.28,596.01,0.33045478]
[1742031919609,0.30228053,597.27,596.01,0.33045478]
[1742031919812,0.30228053,597.26,596.01,0.33045478]
[1742031920008,0.30228053,597.74,596.01,0.33045478]
[1742031920216,0.33460483,597.72,596.01,0.33045478]
[1742031920514,0.30228053,597.71,596.01,0.33045478]
[1742031920717,0.33462162,597.69,596.01,0.33045478]
[1742031920910,0.30228054,597.68,596.01,0.33045478]
[1742031921109,0.63691336,597.67,596.01,0.33045478]
[1742031921314,0.63691896,597.66,596.01,0.33045478]
[1742031921510,0.30228054,597.65,596.01,0.33045478]
[1742031921716,0.63693016,597.64,596.01,0.33045478]
[1742031921916,0.63693576,597.63,596.01,0.33045478]
[1742031922112,0.63694136,597.62,596.01,0.33045478]
[1742031922317,0.30228054,597.61,596.01,0.33045478]
[1742031923018,0.30228054,597.6,596.01,0.33045478]
[1742031923217,0.30228054,597.59,596.01,0.33045478]
[1742031923420,0.63696376,597.58,596.01,0.33045478]
[1742031923619,0.63696936,597.57,596.01,0.33045478]
[1742031923818,0.33469442,597.56,596.01,0.33045478]
[1742031925420,0.29169059,597.55,596.01,0.33045478]
[1742031925617,0.33470562,597.54,596.01,0.33045478]
[1742031926720,0.3023129,597.53,596.01,0.33045478]
[1742031926922,0.33471682,597.52,596.01,0.33045478]
[1742031927222,0.3023129,597.51,596.01,0.33045478]
[1742031927422,0.3023129,597.5,596.01,0.33045478]
[1742031927723,0.63704653,597.49,596.01,0.33045478]
[1742031927922,0.3023129,597.48,596.01,0.33045478]
[1742031928124,0.3023129,597.47,596.01,0.33045478]
[1742031928320,0.3023129,597.46,596.01,0.33045478]
[1742031928524,0.3023129,597.45,596.01,0.33045478]
[1742031928822,0.63707454,597.44,596.01,0.33045478]
[1742031929023,0.33476725,597.43,596.01,0.33045478]
[1742031929222,0.3023129,597.42,596.01,0.33045478]
[1742031929422,0.3023129,597.41,596.01,0.33045478]
[1742031929721,0.3023129,597.4,596.01,0.33045478]
[1742031929917,0.3023129,597.39,596.01,0.33045478]
[1742031930119,0.33476725,597.43,596.01,0.33045478]
[1742031930120,0.3023129,597.38,596.01,0.33045478]
[1742031930422,0.3023129,597.37,596.01,0.33045478]
[1742031930623,0.3023129,597.36,596.01,0.33045478]
[1742031930822,0.3023129,597.35,596.01,0.33045478]
[1742031931123,0.3023129,597.34,596.01,0.33045478]
[1742031931316,0.3023129,597.33,596.01,0.33045478]
[1742031931517,0.3023129,597.32,596.01,0.33045478]
[1742031931716,0.3023129,597.31,596.01,0.33045478]
[1742031931917,0.3023129,597.33,596.01,0.33045478]
[1742031932121,0.3023129,597.32,596.01,0.33045478]
[1742031932318,0.3023129,597.33,596.01,0.33045478]
[1742031932520,0.29171871,597.34,596.01,0.33045478]
[1742031932716,0.30227917,597.33,596.01,0.33045478]
[1742031932922,0.30227917,597.32,596.01,0.33045478]
[1742031933122,0.30227917,597.31,596.01,0.33045478]
[1742031933324,0.30227917,597.33,596.01,0.33045478]
[1742031933626,0.30227917,597.32,596.01,0.33045478]
[1742031933821,0.30227917,597.31,596.01,0.33045478]
[1742031934015,0.30227917,597.3,596.01,0.33045478]
[1742031934215,0.29171993,597.3,596.01,0.33045478]
[1742031934426,0.30227917,597.29,596.01,0.33045478]
[1742031935020,0.30227917,597.28,596.01,0.33045478]
[1742031935216,0.30227917,597.27,596.01,0.33045478]
[1742031935423,0.29171993,597.3,596.01,0.33045478]
[1742031935424,0.30227917,597.26,596.01,0.33045478]
[1742031935723,0.30227917,597.25,596.01,0.33045478]
[1742031936023,0.30227917,597.24,596.01,0.33045478]
[1742031936223,0.29171993,597.3,596.01,0.33045478]
[1742031936224,0.30227917,597.23,596.01,0.33045478]
[1742031936424,0.29171993,597.3,596.01,0.33045478]
[1742031936625,0.30227286,597.29,596.01,0.33045478]
[1742031937324,0.29170526,597.28,596.01,0.33045478]
[1742031937725,0.30227286,597.27,596.01,0.33045478]
[1742031940224,0.30227286,597.42,596.01,0.33045478]
[1742031940428,0.29168326,597.37,596.01,0.33045478]
[1742031940627,0.30227286,597.36,596.01,0.33045478]
[1742031941930,0.29168326,597.37,596.01,0.33045478]
[1742031942127,0.30221554,597.36,596.01,0.33045478]
[1742031943225,0.30221554,597.42,596.01,0.33045478]
[1742031943428,0.29167225,597.37,596.01,0.33045478]
[1742031943623,0.30221554,597.36,596.01,0.33045478]
[1742031946238,0.30221554,597.42,596.01,0.33045478]
[1742031946438,0.29175906,597.35,596.01,0.33045478]
[1742031946639,0.30221554,597.34,596.01,0.33045478]
[1742031946841,0.30221554,597.33,596.01,0.33045478]
[1742031947036,0.30221554,597.32,596.01,0.33045478]
[1742031947337,0.30221554,597.31,596.01,0.33045478]
[1742031947744,0.30221554,597.3,596.01,0.33045478]
[1742031947938,0.2916747,597.33,596.01,0.33045478]
[1742031948137,0.30221554,597.32,596.01,0.33045478]
[1742031949341,0.29168692,597.33,596.01,0.33045478]
[1742031949645,0.30223369,597.32,596.01,0.33045478]
[1742031952241,0.29168692,597.33,596.01,0.33045478]
[1742031952439,0.30223369,597.32,596.01,0.33045478]
[1742031953445,0.30221262,597.31,596.01,0.33045478]
[1742031953640,0.30221262,597.32,596.01,0.33045478]
[1742031955342,0.29168692,597.33,596.01,0.33045478]
[1742031955546,0.30221262,597.32,596.01,0.33045478]
[1742031958346,0.30221262,597.31,596.01,0.33045478]
[1742031958547,0.29168692,597.33,596.01,0.33045478]
[1742031958745,0.30221262,597.32,596.01,0.33045478]
[1742031961453,0.30221262,597.31,596.01,0.33045478]
[1742031961646,0.30221262,597.3,596.01,0.33045478]
[1742031961846,0.30221262,597.32,596.01,0.33045478]
[1742031962051,0.29168692,597.33,596.01,0.33045478]
[1742031962052,0.30221262,597.31,596.01,0.33045478]
[1742031962247,0.30222381,597.3,596.01,0.33045478]
[1742031962448,0.30222381,597.29,596.01,0.33045478]
[1742031962750,0.30222381,597.28,596.01,0.33045478]
[1742031962952,0.30222381,597.32,596.01,0.33045478]
[1742031963146,0.30222381,597.27,596.01,0.33045478]
[1742031963349,0.30222381,597.26,596.01,0.33045478]
[1742031963548,0.30222381,597.32,596.01,0.33045478]
[1742031963754,0.30222381,597.31,596.01,0.33045478]
[1742031964053,0.30222381,597.3,596.01,0.33045478]
[1742031964348,0.30222381,597.42,596.01,0.33045478]
[1742031964552,0.29168692,597.33,596.01,0.33045478]
[1742031964750,0.30222381,597.32,596.01,0.33045478]
[1742031964946,0.30222381,597.42,596.01,0.33045478]
[1742031966151,0.30218858,597.41,596.01,0.33045478]
[1742031966454,0.30218858,597.4,596.01,0.33045478]
[1742031966652,0.30218858,597.41,596.01,0.33045478]
[1742031966952,0.30218858,597.4,596.01,0.33045478]
[1742031967149,0.30218858,597.41,596.01,0.33045478]
[1742031969254,0.30218858,597.41,596.02,0.30797462]
[1742031969455,0.30218858,597.41,596.04,0.33554794]
[1742031969755,0.2916527,597.42,596.04,0.33554794]
[1742031969950,0.30214382,597.41,596.04,0.33554794]
[1742031970348,0.30214382,597.82,596.04,0.33554794]
[1742031970550,0.63669827,597.81,596.05,0.30795331]
[1742031970756,0.63670387,597.8,596.07,0.33553106]
[1742031970955,0.63670947,597.79,596.07,0.33553106]
[1742031971151,0.63671506,597.78,596.07,0.33553106]
[1742031971355,0.63672066,597.77,596.07,0.33553106]
[1742031971555,0.63672626,597.76,596.07,0.33553106]
[1742031971856,0.63673185,597.75,596.07,0.33553106]
[1742031972356,0.59374275,597.74,596.07,0.33553106]
[1742031972556,0.30214382,597.73,596.07,0.33553106]
[1742031973355,0.33458803,597.75,596.07,0.33553106]
[1742031973356,0.30214382,597.74,596.07,0.33553106]
[1742031973557,0.59374398,597.72,596.07,0.33553106]
[1742031973753,0.30214382,597.71,596.07,0.33553106]
[1742031974053,0.30214382,597.71,596.08,0.30795016]
[1742031974252,0.30214382,597.7,596.1,0.33551417]
[1742031974458,0.30214382,597.69,596.1,0.33551417]
[1742031974652,0.30214382,597.71,596.1,0.33551417]
[1742031974857,0.30214382,597.7,596.1,0.33551417]
[1742031975057,0.30214382,597.69,596.1,0.33551417]
[1742031975258,0.30214382,597.71,596.1,0.33551417]
[1742031975458,0.30214382,597.7,596.1,0.33551417]
[1742031975853,0.30214382,597.69,596.1,0.33551417]
[1742031976058,0.30214382,597.68,596.1,0.33551417]
[1742031976356,0.30214382,597.67,596.1,0.33551417]
[1742031976553,0.29165759,597.67,596.1,0.33551417]
[1742031976756,0.30214382,597.66,596.1,0.33551417]
[1742031977362,0.29165759,597.67,596.1,0.33551417]
[1742031977553,0.30214154,597.66,596.1,0.33551417]
[1742031979061,0.33458803,597.75,596.1,0.33551417]
[1742031979263,0.29160382,597.65,596.1,0.33551417]
[1742031979557,0.30211273,597.64,596.1,0.33551417]
[1742031979759,0.33458803,597.75,596.1,0.33551417]
[1742031979958,0.30211277,597.74,596.1,0.33551417]
[1742031981362,0.29157695,597.73,596.1,0.33551417]
[1742031981564,0.30211277,597.72,596.1,0.33551417]
[1742031982363,0.33458803,597.75,596.1,0.33551417]
[1742031982364,0.30211277,597.74,596.1,0.33551417]
[1742031982556,0.30211277,597.73,596.1,0.33551417]
[1742031982757,0.30211277,597.74,596.1,0.33551417]
[1742031982961,0.30211277,597.73,596.1,0.33551417]
[1742031983257,0.30211277,597.72,596.1,0.33551417]
[1742031983563,0.30211277,597.71,596.1,0.33551417]
[1742031983763,0.30211277,597.7,596.1,0.33551417]
[1742031983964,0.30211277,597.69,596.1,0.33551417]
[1742031984158,0.30211277,597.74,596.1,0.33551417]
[1742031984362,0.30211277,597.73,596.1,0.33551417]
[1742031984556,0.30211277,597.74,596.1,0.33551417]
[1742031984760,0.33458803,597.75,596.1,0.33551417]
[1742031984962,0.30209527,597.74,596.1,0.33551417]
[1742031985366,0.5936197,597.74,596.1,0.33551417]
[1742031985565,0.30209527,597.73,596.1,0.33551417]
[1742031986665,0.29152443,597.74,596.1,0.33551417]
[1742031986868,0.30210669,597.73,596.1,0.33551417]
[1742031988363,0.33458803,597.75,596.1,0.33551417]
[1742031988569,0.30208773,597.74,596.1,0.33551417]
[1742031989269,0.30208773,597.74,596.11,0.30787931]
[1742031990469,0.30208773,597.74,596.13,0.33549729]
[1742031990871,0.30208773,597.74,596.14,0.30787931]
[1742031991171,0.30208773,597.74,596.16,0.3354804]
[1742031991372,0.30208773,597.74,596.17,0.30787931]
[1742031991570,0.30208773,597.74,596.19,0.33546352]
[1742031991767,0.30208773,597.74,596.2,0.30787931]
[1742031991970,0.30208773,597.74,596.22,0.33544664]
[1742031992165,0.30208773,597.74,596.23,0.30787931]
[1742031992469,0.30201154,597.73,596.24,0.30783103]
[1742031992672,0.30201154,597.74,596.23,0.30783103]
[1742031992968,0.33458803,597.75,596.22,0.33544664]
[1742031992969,0.30201154,597.73,596.24,0.30783103]
[1742031993174,0.30201154,597.74,596.23,0.30783103]
[1742031993372,0.30201154,597.73,596.24,0.30783103]
[1742031993573,0.30201154,597.74,596.23,0.30783103]
[1742031996570,0.30201154,597.74,596.25,0.33542976]
[1742031996784,0.30201154,597.73,596.26,0.30783103]
[1742031996971,0.30201154,597.72,596.28,0.33541289]
[1742031997180,0.30201154,598.15,596.29,0.30783103]
[1742031997477,0.63638141,598.14,596.31,0.33539601]
[1742031997674,0.63638701,598.13,596.32,0.30783103]
[1742031997877,0.6363926,598.12,596.34,0.33537914]
[1742031998072,0.33438665,598.11,596.34,0.33537914]
[1742031998274,0.30198263,598.1,596.35,0.30780206]
[1742031998476,0.63638046,598.09,596.37,0.33536227]
[1742031998777,0.63638605,598.08,596.37,0.33536227]
[1742031998969,3.31294353,598.16,596.37,0.33536227]
[1742031998970,0.63639164,598.07,596.37,0.33536227]
[1742031999169,0.63639723,598.06,596.37,0.33536227]
[1742031999371,0.63640282,598.05,596.37,0.33536227]
[1742031999577,0.63640842,598.04,596.37,0.33536227]
[1742031999777,0.33443138,598.03,596.37,0.33536227]
[1742031999973,0.30198263,598.02,596.37,0.33536227]
[1742032000171,0.63642519,598.01,596.37,0.33536227]
[1742032000374,0.30198263,598.0,596.37,0.33536227]
[1742032000573,0.30198263,597.99,596.37,0.33536227]
[1742032000877,0.30198263,597.98,596.37,0.33536227]
[1742032001176,0.30198263,597.97,596.37,0.33536227]
[1742032001378,0.30198263,597.96,596.37,0.33536227]
[1742032001572,0.33444256,598.01,596.37,0.33536227]
[1742032001777,0.30201552,598.0,596.37,0.33536227]
[1742032002079,0.30201552,597.99,596.37,0.33536227]
[1742032002277,0.33444256,598.01,596.37,0.33536227]
[1742032002278,0.30201552,597.98,596.37,0.33536227]
[1742032002476,0.30201552,597.97,596.37,0.33536227]
[1742032002677,0.30201552,598.0,596.37,0.33536227]
[1742032002973,0.30201552,597.99,596.37,0.33536227]
[1742032003173,0.30201552,597.98,596.37,0.33536227]
[1742032003375,0.30201552,597.97,596.37,0.33536227]
[1742032003576,0.29147682,597.99,596.37,0.33536227]
[1742032003874,0.30201543,597.98,596.37,0.33536227]
[1742032004071,0.30201543,597.97,596.37,0.33536227]
[1742032004277,0.30201543,597.96,596.37,0.33536227]
[1742032004579,0.30201543,597.95,596.37,0.33536227]
[1742032004774,0.30201543,597.94,596.37,0.33536227]
[1742032004979,0.30201543,597.93,596.37,0.33536227]
[1742032005175,0.30201543,597.92,596.37,0.33536227]
[1742032005379,0.30201543,597.91,596.37,0.33536227]
[1742032005880,0.30201543,597.9,596.37,0.33536227]
[1742032006080,0.33444256,598.01,596.37,0.33536227]
[1742032006081,0.30201543,597.89,596.37,0.33536227]
[1742032006275,0.30201543,597.88,596.37,0.33536227]
[1742032006475,0.33444256,598.01,596.37,0.33536227]
[1742032006476,0.30201543,597.87,596.37,0.33536227]
[1742032006678,0.30201543,597.86,596.37,0.33536227]
[1742032006876,0.30201543,597.85,596.37,0.33536227]
[1742032007078,0.30201543,598.0,596.37,0.33536227]
[1742032007274,0.33444256,598.01,596.37,0.33536227]
[1742032007478,0.30201211,598.0,596.37,0.33536227]
[1742032007780,0.30201211,597.99,596.37,0.33536227]
[1742032007983,0.30201211,597.98,596.37,0.33536227]
[1742032008176,0.30201211,597.97,596.37,0.33536227]
[1742032008375,0.30201211,597.96,596.37,0.33536227]
[1742032008675,0.30201211,597.95,596.37,0.33536227]
[1742032008881,0.30201211,597.94,596.37,0.33536227]
[1742032009083,0.30201552,597.93,596.37,0.33536227]
[1742032009382,0.30201552,597.92,596.37,0.33536227]
[1742032009582,0.30201552,597.91,596.37,0.33536227]
[1742032009779,0.30201552,597.9,596.37,0.33536227]
[1742032009983,0.30201552,597.89,596.37,0.33536227]
[1742032010184,0.30201552,597.88,596.38,0.30781619]
[1742032010383,0.30201552,598.0,596.4,0.3353454]
[1742032010583,0.30201552,597.99,596.4,0.3353454]
[1742032010884,0.30201552,597.98,596.4,0.3353454]
[1742032011085,0.30201552,597.97,596.4,0.3353454]
[1742032011286,0.30201552,597.96,596.4,0.3353454]
[1742032011481,0.30201552,597.95,596.4,0.3353454]
[1742032011686,0.30201552,597.94,596.4,0.3353454]
[1742032011987,0.30201552,597.93,596.4,0.3353454]
[1742032012190,0.30201552,597.92,596.4,0.3353454]
[1742032012387,0.30201552,597.91,596.4,0.3353454]
[1742032012594,0.30201552,597.9,596.4,0.3353454]
[1742032012793,0.30201552,597.89,596.4,0.3353454]
[1742032012987,0.30201552,597.88,596.4,0.3353454]
[1742032013187,0.30201552,597.87,596.4,0.3353454]
[1742032013388,0.30201552,597.86,596.4,0.3353454]
[1742032013586,0.30201552,597.92,596.4,0.3353454]
[1742032013791,0.29145729,597.93,596.4,0.3353454]
[1742032013792,0.30201552,597.91,596.4,0.3353454]
[1742032013993,0.30201552,597.92,596.4,0.3353454]
[1742032014292,0.30201552,597.91,596.4,0.3353454]
[1742032014493,0.30201552,597.92,596.4,0.3353454]
[1742032014693,0.30201552,597.9,596.4,0.3353454]
[1742032014893,0.30201552,597.89,596.4,0.3353454]
[1742032015089,0.30201552,597.92,596.4,0.3353454]
[1742032015294,0.30201552,597.91,596.4,0.3353454]
[1742032015494,0.30201552,598.0,596.4,0.3353454]
[1742032015695,0.33444256,598.01,596.4,0.3353454]
[1742032015696,0.30201552,597.99,596.4,0.3353454]
[1742032015897,0.30201552,597.98,596.4,0.3353454]
[1742032016097,0.30201552,597.97,596.4,0.3353454]
[1742032016297,0.33444256,598.01,596.4,0.3353454]
[1742032016497,0.30199008,598.0,596.4,0.3353454]
[1742032017400,0.29145485,597.99,596.4,0.3353454]
[1742032017597,0.30199008,597.98,596.4,0.3353454]
[1742032018293,0.30199008,598.0,596.4,0.3353454]
[1742032018498,0.33444256,598.01,596.4,0.3353454]
[1742032018499,0.29145729,597.97,596.4,0.3353454]
[1742032018796,0.30198845,597.96,596.4,0.3353454]
[1742032020393,0.30198857,597.95,596.4,0.3353454]
[1742032020602,0.30198857,597.96,596.4,0.3353454]
[1742032020798,0.30198857,597.95,596.4,0.3353454]
[1742032020996,0.30198857,597.96,596.4,0.3353454]
[1742032021302,0.30198857,597.95,596.4,0.3353454]
[1742032021502,0.2915403,597.95,596.4,0.3353454]
[1742032021695,0.30198857,597.94,596.4,0.3353454]
[1742032024799,0.30198857,597.93,596.4,0.3353454]
[1742032024998,0.30198857,597.92,596.41,0.3078231]
[1742032025198,0.30198857,597.91,596.41,0.3078231]
[1742032025399,0.30198857,597.9,596.41,0.3078231]
[1742032025604,0.30198857,597.89,596.41,0.3078231]
[1742032025903,0.30198857,597.88,596.41,0.3078231]
[1742032026304,0.30198857,597.87,596.41,0.3078231]
[1742032026500,0.30198857,597.86,596.41,0.3078231]
[1742032026706,0.30198857,597.85,596.4,0.3353454]
[1742032026903,0.30198857,597.84,596.4,0.3353454]
[1742032027101,2.56182178,597.88,596.4,0.3353454]
[1742032027299,0.29149513,597.84,596.4,0.3353454]
[1742032027503,0.30198857,597.83,596.4,0.3353454]
[1742032030104,0.33454886,597.82,596.4,0.3353454]
[1742032030312,0.30198857,597.81,596.4,0.3353454]
[1742032031917,0.33456005,597.8,596.4,0.3353454]
[1742032032212,0.30198857,597.79,596.4,0.3353454]
[1742032033412,0.29153542,597.78,596.4,0.3353454]
[1742032033606,0.30198857,597.77,596.4,0.3353454]
[1742032034910,0.30198857,597.76,596.4,0.3353454]
[1742032035110,0.30198857,597.75,596.4,0.3353454]
[1742032035311,0.30198857,597.74,596.4,0.3353454]
[1742032035505,0.30198857,597.73,596.4,0.3353454]
[1742032035709,0.30198857,597.72,596.4,0.3353454]
[1742032035908,0.30198857,597.71,596.4,0.3353454]
[1742032036212,0.30198857,597.7,596.4,0.3353454]
[1742032036413,0.30198857,597.69,596.4,0.3353454]
[1742032036614,0.30198857,597.68,596.4,0.3353454]
[1742032036909,0.29153908,597.7,596.4,0.3353454]
[1742032036910,0.30198857,597.67,596.4,0.3353454]
[1742032037114,0.30198857,597.66,596.4,0.3353454]
[1742032037406,0.30198857,597.65,596.4,0.3353454]
[1742032037608,0.30198857,597.64,596.4,0.3353454]
[1742032037808,0.29153908,597.7,596.4,0.3353454]
[1742032037809,0.30198857,597.63,596.4,0.3353454]
[1742032038007,0.29153908,597.7,596.4,0.3353454]
[1742032038212,0.30210801,597.69,596.4,0.3353454]
[1742032038607,0.30210801,597.68,596.4,0.3353454]
[1742032038811,0.302108,597.67,596.4,0.3353454]
[1742032039012,0.302108,597.66,596.4,0.3353454]
[1742032039211,0.302108,597.65,596.4,0.3353454]
[1742032039409,0.302108,597.64,596.4,0.3353454]
[1742032039612,0.302108,597.63,596.4,0.3353454]
[1742032039907,0.302108,597.62,596.4,0.3353454]
[1742032040112,0.302108,597.61,596.4,0.3353454]
[1742032040412,0.302108,597.6,596.4,0.3353454]
[1742032040611,0.29154885,597.66,596.4,0.3353454]
[1742032040612,0.302108,597.65,596.4,0.3353454]
[1742032040812,0.302108,597.64,596.4,0.3353454]
[1742032041012,0.302108,597.63,596.4,0.3353454]
[1742032041208,0.302108,597.65,596.4,0.3353454]
[1742032041413,0.302108,597.64,596.4,0.3353454]
[1742032041613,0.302108,597.63,596.4,0.3353454]
[1742032041814,0.302108,597.62,596.4,0.3353454]
[1742032042116,0.302108,597.61,596.4,0.3353454]
[1742032042309,0.302108,597.6,596.4,0.3353454]
[1742032042508,0.302108,597.59,596.4,0.3353454]
[1742032042811,0.302108,597.58,596.4,0.3353454]
[1742032043011,0.302108,597.76,596.4,0.3353454]
[1742032043305,0.302108,597.75,596.4,0.3353454]
[1742032043508,0.302108,597.74,596.4,0.3353454]
[1742032043707,3.299559,597.77,596.4,0.3353454]
[1742032043913,0.3020908,597.76,596.4,0.3353454]
[1742032044212,0.3020908,597.75,596.4,0.3353454]
[1742032044410,0.3020908,597.74,596.4,0.3353454]
[1742032044613,0.3020908,597.78,596.4,0.3353454]
[1742032044809,0.3020908,597.79,596.4,0.3353454]
[1742032045016,0.3020908,597.78,596.4,0.3353454]
[1742032045214,0.29151344,597.78,596.4,0.3353454]
[1742032045522,0.3020908,597.77,596.4,0.3353454]
[1742032046918,0.29151344,597.78,596.4,0.3353454]
[1742032047120,0.30203665,597.77,596.4,0.3353454]
[1742032048415,0.29159893,597.76,596.4,0.3353454]
[1742032048612,0.30203665,597.75,596.4,0.3353454]
[1742032051220,0.33456005,597.8,596.4,0.3353454]
[1742032051519,0.29149879,597.74,596.4,0.3353454]
[1742032054723,0.30204853,597.7,596.4,0.3353454]
[1742032060327,0.59357296,597.69,596.4,0.3353454]
[1742032060530,0.30204853,597.68,596.4,0.3353454]
[1742032060729,0.30207446,597.67,596.4,0.3353454]
[1742032061030,0.30207446,597.66,596.4,0.3353454]
[1742032061230,0.30207446,597.68,596.4,0.3353454]
[1742032061528,0.30207446,597.67,596.4,0.3353454]
[1742032061729,0.30207446,597.68,596.4,0.3353454]
[1742032061930,0.30207446,597.67,596.4,0.3353454]
[1742032062122,0.30207446,597.68,596.4,0.3353454]
[1742032062323,0.30207446,597.66,596.4,0.3353454]
[1742032062629,0.29152443,597.69,596.4,0.3353454]
[1742032062828,0.30208958,597.68,596.4,0.3353454]
[1742032063229,0.30208958,597.79,596.4,0.3353454]
[1742032063424,0.29152931,597.67,596.4,0.3353454]
[1742032063629,0.30208958,597.66,596.4,0.3353454]
[1742032063829,0.30208958,597.79,596.4,0.3353454]
[1742032064029,0.30208958,597.78,596.4,0.3353454]
[1742032064230,0.30208958,597.77,596.4,0.3353454]
[1742032064431,0.30208958,597.76,596.4,0.3353454]
[1742032064732,0.30208958,597.75,596.4,0.3353454]
[1742032064932,0.30208958,597.79,596.4,0.3353454]
[1742032065133,0.30208958,597.78,596.4,0.3353454]
[1742032065332,0.29151588,597.78,596.4,0.3353454]
[1742032065533,0.30208958,597.77,596.4,0.3353454]
[1742032066228,0.30208958,597.79,596.4,0.3353454]
[1742032066430,0.29151832,597.76,596.4,0.3353454]
[1742032066627,0.30210301,597.75,596.4,0.3353454]
[1742032067031,0.30210301,597.74,596.4,0.3353454]
[1742032067334,0.30210301,597.73,596.4,0.3353454]
[1742032067534,0.30210301,597.72,596.4,0.3353454]
[1742032067734,0.30210301,597.71,596.4,0.3353454]
[1742032067933,0.30210301,597.7,596.4,0.3353454]
[1742032068133,0.30210301,597.69,596.4,0.3353454]
[1742032068335,0.30210301,597.68,596.4,0.3353454]
[1742032068536,0.30210301,597.67,596.4,0.3353454]
[1742032068833,0.30210301,597.66,596.4,0.3353454]
[1742032069029,0.30210301,597.65,596.4,0.3353454]
[1742032069434,0.30210301,597.64,596.4,0.3353454]
[1742032069631,0.30210301,597.75,596.4,0.3353454]
[1742032069835,2.56182178,597.67,596.4,0.3353454]
[1742032070036,0.30210301,597.66,596.4,0.3353454]
[1742032070229,0.3020841,597.65,596.4,0.3353454]
[1742032070427,0.3020841,597.66,596.4,0.3353454]
[1742032070629,0.3020841,597.65,596.4,0.3353454]
[1742032070831,0.3020841,597.66,596.4,0.3353454]
[1742032071131,0.3020841,597.65,596.4,0.3353454]
[1742032071334,0.3020841,597.66,596.4,0.3353454]
[1742032071634,0.3020841,597.65,596.4,0.3353454]
[1742032071836,0.3020841,597.64,596.4,0.3353454]
[1742032072035,0.3020841,597.63,596.4,0.3353454]
[1742032072235,0.3020841,597.62,596.4,0.3353454]
[1742032072428,0.3020841,597.61,596.4,0.3353454]
[1742032072629,0.3020841,597.62,596.4,0.3353454]
[1742032072829,0.3020841,597.61,596.4,0.3353454]
[1742032073029,0.3020841,597.62,596.4,0.3353454]
[1742032073230,0.3020841,597.61,596.4,0.3353454]
[1742032073634,0.3020841,597.6,596.4,0.3353454]
[1742032074034,0.3020841,597.59,596.4,0.3353454]
[1742032074230,0.3020841,597.62,596.4,0.3353454]
[1742032075331,0.29153664,597.61,596.4,0.3353454]
[1742032075932,0.30206833,597.6,596.4,0.3353454]
[1742032078338,0.30206833,597.79,596.4,0.3353454]
[1742032078539,0.30206833,597.78,596.4,0.3353454]
[1742032078841,0.30206833,597.77,596.4,0.3353454]
[1742032079041,0.30206833,597.76,596.4,0.3353454]
[1742032079240,0.30206833,597.75,596.4,0.3353454]
[1742032079441,0.30206833,597.74,596.4,0.3353454]
[1742032079739,0.30206833,597.73,596.4,0.3353454]
[1742032079940,5.69803891,597.91,596.4,0.3353454]